bitfinex-derivatives/quotes_BTCF0:USTF0_20250828
["timestamp","ask_amount","ask_price","bid_price","bid_amount"]
[1756341006286,0.8075652,111180.0,111170.0,0.55983515]
[1756341006500,0.0178852,111180.0,111170.0,0.55983515]
[1756341006701,0.8775652,111180.0,111170.0,0.55983515]
[1756341006997,0.8785652,111180.0,111170.0,0.55983515]
[1756341007498,0.0198852,111180.0,111170.0,0.2452483]
[1756341007693,0.0198852,111180.0,111170.0,0.55983515]
[1756341007895,0.8795252,111180.0,111170.0,0.55983515]
[1756341008096,0.8795652,111180.0,111170.0,0.55983515]
[1756341009000,0.0198852,111180.0,111170.0,0.55983515]
[1756341009300,0.8795252,111180.0,111170.0,0.2452483]
[1756341009500,0.8795252,111180.0,111170.0,0.55983515]
[1756341009898,0.0198852,111180.0,111170.0,0.55983515]
[1756341010103,0.8794852,111180.0,111170.0,0.55983515]
[1756341010794,0.8794852,111180.0,111170.0,0.1553]
[1756341011194,1.19407205,111180.0,111170.0,0.1553]
[1756341011395,0.8794852,111180.0,111170.0,0.1553]
[1756341011797,1.81407205,111180.0,111170.0,0.07101]
[1756341012203,1.81407205,111180.0,111170.0,0.0273]
[1756341012404,1.81407205,111180.0,111160.0,0.2929]
[1756341012604,0.31458685,111170.0,111160.0,0.31518]
[1756341012901,0.63458685,111170.0,111160.0,0.31518]
[1756341013499,0.63458685,111170.0,111160.0,0.2929]
[1756341014300,0.88458685,111170.0,111160.0,0.2929]
[1756341014503,0.70586968,111170.0,111160.0,0.2929]
[1756341015901,0.88458685,111170.0,111160.0,0.4209]
[1756341016206,0.33247205,111180.0,111170.0,0.10832]
[1756341016400,1.53183205,111180.0,111160.0,0.34164]
[1756341016606,1.53183205,111180.0,111160.0,0.10334]
[1756341016800,0.31458685,111170.0,111160.0,0.04958]
[1756341017002,0.62458685,111170.0,111160.0,0.0273]
[1756341017508,1.17390685,111170.0,111160.0,0.1553]
[1756341017706,0.85932,111170.0,111160.0,0.1553]
[1756341018702,0.33247205,111180.0,111170.0,0.05958]
[1756341019005,1.56171205,111180.0,111170.0,0.0273]
[1756341019206,1.56271205,111180.0,111170.0,0.0273]
[1756341019507,1.56271205,111180.0,111150.0,0.40454825]
[1756341019707,1.56271205,111180.0,111160.0,0.0273]
[1756341019901,0.31458685,111170.0,111160.0,0.0273]
[1756341020107,0.33458685,111170.0,111160.0,0.04958]
[1756341020302,0.67458685,111170.0,111160.0,0.1553]
[1756341020615,0.33458685,111170.0,111160.0,0.1553]
[1756341021302,0.64458685,111170.0,111160.0,0.1553]
[1756341021608,0.64458685,111170.0,111160.0,0.07101]
[1756341021808,0.33,111170.0,111160.0,0.07101]
[1756341022703,0.33,111170.0,111160.0,0.13562]
[1756341023810,0.31458685,111170.0,111160.0,0.13562]
[1756341024010,0.66458685,111170.0,111160.0,0.13562]
[1756341024305,0.66458685,111170.0,111160.0,0.07101]
[1756341024710,0.66458685,111170.0,111160.0,0.10329]
[1756341025011,0.66458685,111170.0,111160.0,0.13562]
[1756341025212,0.91458685,111170.0,111150.0,0.0274]
[1756341025408,0.31458685,111160.0,111150.0,0.04968]
[1756341025611,0.50868,111160.0,111150.0,0.1553]
[1756341026316,0.50868,111160.0,111150.0,0.1563]
[1756341026612,0.84868,111160.0,111150.0,0.09169]
[1756341026816,1.16326685,111160.0,111150.0,0.0283]
[1756341027008,1.16326685,111160.0,111150.0,0.0273]
[1756341027314,1.16426685,111160.0,111150.0,0.0293]
[1756341027810,1.16526685,111160.0,111150.0,0.0273]
[1756341028514,1.16626685,111160.0,111150.0,0.0273]
[1756341028710,1.16726685,111160.0,111150.0,0.0273]
[1756341029316,1.28367747,111160.0,111150.0,0.0273]
[1756341029513,1.53367747,111160.0,111140.0,0.02928]
[1756341029813,0.01883,111140.0,111130.0,0.04505]
[1756341030016,0.04144,111130.0,111120.0,0.11139]
[1756341030316,0.68602685,111130.0,111120.0,0.11139]
[1756341030811,0.68602685,111130.0,111100.0,0.31458685]
[1756341030812,0.73551977,111130.0,111110.0,0.11139]
[1756341031016,0.91850805,111120.0,111110.0,0.11139]
[1756341031214,1.24609026,111120.0,111110.0,0.11139]
[1756341031418,0.95150341,111120.0,111110.0,0.11139]
[1756341031613,0.07270341,111120.0,111110.0,0.13044]
[1756341031819,0.93146341,111120.0,111110.0,0.13044]
[1756341032117,0.93146341,111120.0,111110.0,0.15962]
[1756341032415,0.93146341,111120.0,111110.0,0.14057]
[1756341032416,0.07370341,111120.0,111110.0,0.14057]
[1756341032622,0.93242341,111120.0,111110.0,0.14057]
[1756341032915,0.93442341,111120.0,111110.0,0.15962]
[1756341036821,1.24442341,111120.0,111110.0,0.07433]
[1756341037011,1.26901026,111120.0,111110.0,0.10795]
[1756341037317,0.09570341,111120.0,111110.0,0.10695]
[1756341037517,0.95430341,111120.0,111110.0,0.15962]
[1756341038615,2.17347711,111120.0,111100.0,0.0001]
[1756341038816,0.01883,111100.0,111090.0,0.05516955]
[1756341039022,0.90693,111100.0,111090.0,0.12130955]
[1756341039808,1.54981279,111100.0,111090.0,0.0221]
[1756341040010,1.54981279,111100.0,111090.0,0.0231]
[1756341040220,1.54981279,111100.0,111090.0,0.001]
[1756341040921,1.79981279,111100.0,111090.0,0.001]
[1756341041622,1.80081279,111100.0,111080.0,0.0001]
[1756341041916,0.04737,111080.0,111070.0,0.17979502]
[1756341042112,0.90581,111080.0,111070.0,0.17969502]
[1756341042313,0.85844,111080.0,111070.0,0.58431037]
[1756341042911,0.85844,111080.0,111070.0,0.49428187]
[1756341044022,0.44919384,111100.0,111090.0,0.02918]
[1756341044217,1.01300699,111100.0,111090.0,0.02918]
[1756341044418,1.30759384,111100.0,111090.0,0.02918]
[1756341044623,1.32759384,111100.0,111090.0,0.02918]
[1756341045224,1.32759384,111100.0,111090.0,0.05128]
[1756341045424,1.32959384,111100.0,111090.0,0.05128]
[1756341045727,1.33259384,111100.0,111090.0,0.05128]
[1756341046522,0.13960699,111100.0,111090.0,0.127]
[1756341046730,0.99792699,111100.0,111090.0,0.47420685]
[1756341047226,1.08793869,111100.0,111090.0,0.15962]
[1756341047820,0.22961869,111100.0,111090.0,0.15962]
[1756341048020,1.08785869,111100.0,111090.0,0.15962]
[1756341048728,1.08685869,111100.0,111090.0,0.15962]
[1756341048924,1.08485869,111100.0,111090.0,0.15962]
[1756341049124,1.08585869,111100.0,111090.0,0.15962]
[1756341050529,1.74521885,111100.0,111090.0,0.02918]
[1756341050727,0.0900122,111090.0,111080.0,0.02928]
[1756341051031,0.77459905,111090.0,111080.0,0.02918]
[1756341051218,0.40459905,111090.0,111080.0,0.10795]
[1756341051423,1.3181322,111090.0,111080.0,0.15962]
[1756341051737,1.3191322,111090.0,111080.0,0.15962]
[1756341052127,1.3191322,111090.0,111080.0,0.16062]
[1756341052626,1.3191322,111090.0,111080.0,0.127]
[1756341053024,0.4610122,111090.0,111080.0,0.127]
[1756341053225,0.9490522,111090.0,111080.0,0.16062]
[1756341053531,0.9690522,111090.0,111080.0,0.16062]
[1756341053929,1.2890522,111090.0,111080.0,0.16062]
[1756341054430,1.31382978,111090.0,111080.0,0.16062]
[1756341054634,1.2890522,111090.0,111080.0,0.16062]
[1756341055027,1.61363905,111090.0,111080.0,0.03018]
[1756341055334,1.30841662,111090.0,111080.0,0.03018]
[1756341055528,1.66841662,111090.0,111080.0,0.03018]
[1756341056130,1.30841662,111090.0,111080.0,0.03018]
[1756341056433,0.11578977,111090.0,111080.0,0.09438]
[1756341056632,0.97366977,111090.0,111080.0,0.16062]
[1756341057837,0.99366977,111090.0,111080.0,0.16062]
[1756341058030,0.11578977,111090.0,111080.0,0.44258685]
[1756341058236,0.97358977,111090.0,111080.0,0.47520685]
[1756341060339,0.97358977,111090.0,111080.0,0.16062]
[1756341061528,0.97350977,111090.0,111080.0,0.16062]
[1756341061732,0.97342977,111090.0,111080.0,0.16062]
[1756341061932,0.99342977,111090.0,111080.0,0.03018]
[1756341062132,1.30801662,111090.0,111080.0,0.03018]
[1756341062333,0.11578977,111090.0,111080.0,0.16401]
[1756341062541,0.97342977,111090.0,111080.0,0.81861705]
[1756341063236,0.97338977,111090.0,111080.0,0.81861705]
[1756341063437,0.02577757,111090.0,111080.0,0.81861705]
[1756341063633,0.274769,111110.0,111100.0,0.2517741]
[1756341063939,0.274669,111110.0,111100.0,0.47635685]
[1756341064838,0.274669,111110.0,111100.0,0.16177]
[1756341065040,0.274669,111110.0,111100.0,0.47635685]
[1756341065540,0.275669,111110.0,111100.0,0.47635685]
[1756341066040,0.090999,111110.0,111100.0,0.81636095]
[1756341066231,0.956269,111110.0,111100.0,0.72635685]
[1756341069040,0.090999,111110.0,111100.0,0.81636095]
[1756341069236,0.85816,111110.0,111100.0,0.83610933]
[1756341069437,0.001,111110.0,111100.0,0.83610933]
[1756341070337,0.01826805,111120.0,111110.0,0.251766]
[1756341070545,0.01826805,111120.0,111110.0,0.8809397]
[1756341070743,0.01826805,111120.0,111110.0,1.1309397]
[1756341071040,0.01826805,111120.0,111110.0,0.56635285]
[1756341071443,0.01926805,111120.0,111110.0,0.251766]
[1756341071639,0.04252217,111120.0,111110.0,0.56635285]
[1756341072235,0.04352217,111120.0,111110.0,0.56635285]
[1756341072446,0.02026805,111120.0,111110.0,0.56635285]
[1756341073834,0.04304442,111120.0,111110.0,0.56635285]
[1756341075740,0.02026805,111120.0,111110.0,0.83195285]
[1756341076342,0.07210292,111130.0,111120.0,0.0899879]
[1756341076539,0.90078735,111140.0,111130.0,0.2517498]
[1756341076738,0.90078735,111140.0,111130.0,0.56633665]
[1756341077345,0.99076495,111140.0,111130.0,0.47635685]
[1756341078244,0.99376495,111140.0,111130.0,0.47635685]
[1756341078446,0.99676495,111140.0,111130.0,0.47635685]
[1756341078747,0.99676495,111140.0,111130.0,0.56633665]
[1756341078940,0.4089493,111140.0,111130.0,0.58616612]
[1756341079246,1.0396634,111140.0,111130.0,0.58616612]
[1756341079743,1.0153834,111140.0,111130.0,0.58616612]
[1756341079948,1.0875086,111140.0,111130.0,0.58616612]
[1756341080151,1.1117886,111140.0,111130.0,0.58616612]
[1756341080650,1.1117886,111140.0,111130.0,0.49618632]
[1756341081848,1.1117886,111140.0,111130.0,0.58616612]
[1756341083046,1.1117886,111140.0,111130.0,0.49618632]
[1756341083350,1.3617886,111140.0,111130.0,0.11267947]
[1756341083651,1.3617886,111140.0,111130.0,0.07289]
[1756341084249,1.67637545,111140.0,111130.0,0.07289]
[1756341084552,1.3617886,111140.0,111130.0,0.2517498]
[1756341085053,1.3617886,111140.0,111130.0,0.56633665]
[1756341085353,1.3617886,111140.0,111130.0,0.47635685]
[1756341086954,1.3617886,111140.0,111130.0,0.44303685]
[1756341087154,1.3817886,111140.0,111130.0,0.44303685]
[1756341087752,1.3811886,111140.0,111130.0,0.47635685]
[1756341091755,1.3610286,111140.0,111130.0,0.56633665]
[1756341092356,1.3610286,111140.0,111130.0,0.2517498]
[1756341092558,1.3610286,111140.0,111130.0,0.47635685]
[1756341093457,1.3609086,111140.0,111130.0,0.47635685]
[1756341094662,0.5053486,111140.0,111130.0,0.47635685]
[1756341094861,1.1108286,111140.0,111130.0,0.47635685]
[1756341095056,1.1108286,111140.0,111130.0,0.56633665]
[1756341095565,1.1107486,111140.0,111130.0,0.47635685]
[1756341095978,1.1106686,111140.0,111130.0,0.56633665]
[1756341097177,0.2310686,111140.0,111130.0,0.56633665]
[1756341097478,1.0647686,111140.0,111130.0,0.81633665]
[1756341098481,1.0890486,111140.0,111130.0,0.81633665]
[1756341098984,1.0646486,111140.0,111130.0,0.81633665]
[1756341099175,0.2095286,111140.0,111130.0,0.81633665]
[1756341099681,0.9746369,111140.0,111130.0,0.81633665]
[1756341099881,0.1195569,111140.0,111130.0,0.81633665]
[1756341100078,0.9746369,111140.0,111130.0,0.81633665]
[1756341100483,0.9745969,111140.0,111130.0,0.81633665]
[1756341100887,0.9988769,111140.0,111130.0,0.81633665]
[1756341101579,1.0211569,111140.0,111130.0,0.12845]
[1756341101788,1.0211569,111140.0,111130.0,0.2502498]
[1756341101978,1.0211569,111140.0,111130.0,0.05076]
[1756341102178,1.04524444,111140.0,111130.0,0.0834]
[1756341102380,1.04524444,111140.0,111130.0,0.05076]
[1756341102381,1.42524444,111140.0,111130.0,0.05076]
[1756341102581,1.04524444,111140.0,111130.0,0.05076]
[1756341103185,1.04524444,111140.0,111130.0,0.56017665]
[1756341103886,1.40524444,111140.0,111130.0,0.12379]
[1756341104187,1.04524444,111140.0,111130.0,0.56017675]
[1756341105281,0.16592444,111140.0,111130.0,0.56017675]
[1756341105480,1.04496444,111140.0,111130.0,0.56017675]
[1756341105783,1.04496444,111140.0,111130.0,0.52835675]
[1756341106286,1.04496444,111140.0,111130.0,0.56017675]
[1756341106587,1.04484444,111140.0,111130.0,0.56017675]
[1756341107085,1.04484444,111140.0,111130.0,0.56017665]
[1756341107486,1.04484444,111140.0,111130.0,0.43837685]
[1756341107879,1.36484444,111140.0,111130.0,0.43837685]
[1756341108183,1.04484444,111140.0,111130.0,0.40573685]
[1756341108386,1.06484444,111140.0,111130.0,0.40573685]
[1756341108581,1.06484444,111140.0,111130.0,0.43837685]
[1756341108886,1.06484444,111140.0,111130.0,0.47019685]
[1756341109390,1.04484444,111140.0,111130.0,0.47019685]
[1756341109590,1.04484444,111140.0,111130.0,0.56017675]
[1756341109986,1.04484444,111140.0,111130.0,0.47019685]
[1756341110887,1.04284444,111140.0,111130.0,0.47019685]
[1756341111087,1.04084444,111140.0,111130.0,0.47019685]
[1756341111688,1.37084444,111140.0,111130.0,0.47019685]
[1756341111890,1.37084444,111140.0,111130.0,0.43837685]
[1756341112083,1.3467569,111140.0,111130.0,0.43837685]
[1756341112485,1.3467569,111140.0,111130.0,0.47019685]
[1756341112686,1.3467569,111140.0,111130.0,0.12379]
[1756341112881,1.3467569,111140.0,111130.0,0.09115]
[1756341113086,1.3467569,111140.0,111130.0,0.05076]
[1756341113288,1.91134375,111140.0,111130.0,0.02794]
[1756341113488,1.66134375,111140.0,111130.0,0.02794]
[1756341113786,0.04656,111130.0,111120.0,0.29352]
[1756341113988,0.40656,111130.0,111120.0,0.29342]
[1756341114287,0.39656,111130.0,111120.0,0.15632]
[1756341114488,0.04656,111130.0,111120.0,0.15632]
[1756341115089,0.04656,111130.0,111120.0,0.47090685]
[1756341115992,0.06656,111130.0,111120.0,0.47190685]
[1756341116395,0.40656,111130.0,111120.0,0.47190685]
[1756341116590,0.04656,111130.0,111120.0,0.15732]
[1756341116794,0.41656,111130.0,111120.0,0.47190685]
[1756341116997,0.04656,111130.0,111120.0,0.47190685]
[1756341117196,0.90064,111130.0,111120.0,0.47190685]
[1756341117898,0.04656,111130.0,111120.0,0.47190685]
[1756341118197,0.1601169,111140.0,111130.0,0.15632]
[1756341118399,1.0140769,111140.0,111130.0,0.47090685]
[1756341118598,0.1601169,111140.0,111130.0,0.47090685]
[1756341118799,1.0140769,111140.0,111130.0,0.47090685]
[1756341119097,1.32866375,111140.0,111130.0,0.02782]
[1756341119292,1.34866375,111140.0,111130.0,0.02782]
[1756341119495,0.1821169,111140.0,111130.0,0.42075685]
[1756341119798,1.0359969,111140.0,111130.0,0.47365685]
[1756341120593,1.0159969,111140.0,111130.0,0.47365685]
[1756341120795,0.1378369,111140.0,111130.0,0.56363585]
[1756341120994,0.1155569,111140.0,111130.0,0.81363585]
[1756341121200,0.7923569,111140.0,111130.0,0.81363585]
[1756341121402,0.1155569,111140.0,111130.0,0.81363585]
[1756341121699,0.09268255,111140.0,111130.0,0.81363585]
[1756341121899,0.02697255,111140.0,111130.0,0.81363585]
[1756341122103,0.53372,111160.0,111150.0,0.16028]
[1756341122296,0.63205,111160.0,111150.0,0.47486685]
[1756341122902,0.60855,111160.0,111150.0,0.47486685]
[1756341123603,0.62848744,111160.0,111150.0,0.56482965]
[1756341124300,0.62848744,111160.0,111150.0,0.16028]
[1756341124498,0.62848744,111160.0,111150.0,0.47486685]
[1756341124698,0.95158744,111160.0,111150.0,0.56482965]
[1756341124898,0.01993744,111160.0,111150.0,1.1294165]
[1756341125209,0.09147981,111170.0,111160.0,0.2502347]
[1756341125510,0.09147981,111170.0,111160.0,0.8794084]
[1756341125701,0.09147981,111170.0,111160.0,1.1294084]
[1756341126412,0.09147981,111170.0,111160.0,1.1314084]
[1756341126701,0.11161604,111170.0,111160.0,1.1314084]
[1756341127005,0.01855377,111170.0,111160.0,1.1314084]
[1756341128303,0.05123377,111170.0,111160.0,1.1314084]
[1756341128505,0.12088377,111170.0,111160.0,0.81682155]
[1756341128706,0.14054377,111170.0,111160.0,0.47686685]
[1756341129111,0.16404377,111170.0,111160.0,0.47686685]
[1756341129308,0.14054377,111170.0,111160.0,0.47686685]
[1756341129513,0.16404377,111170.0,111160.0,0.16228]
[1756341129713,0.50667373,111170.0,111160.0,0.47686685]
[1756341131618,0.50667373,111170.0,111160.0,0.002]
[1756341131810,0.88667373,111170.0,111160.0,0.03103]
[1756341132209,0.86667373,111170.0,111160.0,0.03103]
[1756341132814,0.85667373,111170.0,111160.0,0.07525]
[1756341133009,0.85667373,111170.0,111160.0,0.002]
[1756341135314,0.85667373,111170.0,111160.0,0.03103]
[1756341135706,0.50667373,111170.0,111160.0,0.03103]
[1756341136512,0.86667373,111170.0,111160.0,0.03103]
[1756341136708,0.50667373,111170.0,111160.0,0.03103]
[1756341136915,0.52667373,111170.0,111160.0,0.03103]
[1756341137208,0.82667373,111170.0,111160.0,0.03103]
[1756341137412,1.14126058,111170.0,111160.0,0.002]
[1756341138014,0.82667373,111170.0,111160.0,0.002]
[1756341138312,1.14126058,111170.0,111160.0,0.002]
[1756341138617,0.82667373,111170.0,111160.0,0.002]
[1756341138815,1.99394058,111170.0,111160.0,0.002]
[1756341139017,1.14126058,111170.0,111160.0,0.002]
[1756341139315,1.99390058,111170.0,111160.0,0.002]
[1756341140611,1.99390058,111170.0,111150.0,0.0001]
[1756341140808,0.45807685,111160.0,111150.0,0.0001]
[1756341141115,0.14349,111150.0,111140.0,0.10704]
[1756341141307,1.30605,111150.0,111140.0,0.10694]
[1756341141507,1.30605,111150.0,111140.0,0.07325]
[1756341141906,1.30405,111150.0,111140.0,0.07325]
[1756341142103,1.30405,111150.0,111140.0,0.0513]
[1756341142308,0.09721,111140.0,111130.0,0.42162685]
[1756341142506,0.13407573,111140.0,111130.0,0.47486685]
[1756341142817,0.15407573,111140.0,111130.0,0.16028]
[1756341143311,0.75666258,111140.0,111130.0,0.02903]
[1756341143517,0.44207573,111140.0,111130.0,0.02903]
[1756341143716,0.48407573,111140.0,111130.0,0.02903]
[1756341144017,0.50657573,111140.0,111130.0,0.02903]
[1756341144312,0.75657573,111140.0,111130.0,0.02903]
[1756341144513,1.07116258,111140.0,111130.0,0.02903]
[1756341144820,1.07116258,111140.0,111120.0,0.0514]
[1756341144821,0.10881,111130.0,111120.0,0.0514]
[1756341145019,1.27583685,111130.0,111120.0,0.0513]
[1756341145219,1.30851685,111130.0,111120.0,0.0513]
[1756341145712,1.30851685,111130.0,111120.0,0.02903]
[1756341145913,1.32851685,111130.0,111120.0,0.02903]
[1756341146221,1.67351685,111130.0,111120.0,0.02903]
[1756341147314,0.14149,111120.0,111110.0,0.02913]
[1756341147518,0.45607685,111120.0,111110.0,0.02903]
[1756341148018,0.93453,111120.0,111110.0,0.14107]
[1756341148220,0.14149,111120.0,111110.0,0.14107]
[1756341148419,0.99377,111120.0,111110.0,0.14107]
[1756341148814,0.99577,111120.0,111110.0,0.14107]
[1756341149117,0.99577,111120.0,111110.0,0.16028]
[1756341149615,1.00177,111120.0,111110.0,0.16028]
[1756341150522,0.14949,111120.0,111110.0,0.16028]
[1756341150724,0.64425,111120.0,111110.0,0.16028]
[1756341151718,0.14949,111120.0,111110.0,0.16028]
[1756341151921,0.94297,111120.0,111110.0,0.16028]
[1756341152517,0.94297,111120.0,111110.0,0.47486685]
[1756341152915,0.95791,111120.0,111110.0,0.47486685]
[1756341153120,0.88298,111120.0,111110.0,0.72486685]
[1756341153429,0.96085,111120.0,111110.0,0.72486685]
[1756341153612,0.97917,111120.0,111110.0,0.72486685]
[1756341154422,0.97917,111120.0,111110.0,0.69117685]
[1756341154423,1.00067,111120.0,111110.0,0.69117685]
[1756341154725,1.00067,111120.0,111110.0,0.72584685]
[1756341155119,0.99967,111120.0,111110.0,0.72584685]
[1756341155325,0.97505,111120.0,111110.0,0.72584685]
[1756341157126,0.10069,111120.0,111110.0,0.72584685]
[1756341157320,0.85596,111120.0,111110.0,0.81584045]
[1756341158217,0.85496,111120.0,111110.0,0.81584045]
[1756341158421,0.85396,111120.0,111110.0,0.81584045]
[1756341158623,0.002,111120.0,111110.0,1.08144045]
[1756341167926,0.0919855,111120.0,111110.0,1.08144045]
[1756341168126,0.2114555,111120.0,111110.0,0.83144045]
[1756341168326,0.2329555,111120.0,111110.0,0.83144045]
[1756341168828,0.2114555,111120.0,111110.0,0.83144045]
[1756341169430,0.1891755,111120.0,111110.0,0.83144045]
[1756341169632,0.4829555,111120.0,111110.0,0.74144685]
[1756341170126,0.4614555,111120.0,111110.0,0.83144035]
[1756341170526,0.4614555,111120.0,111110.0,0.47584685]
[1756341170727,0.4829555,111120.0,111110.0,0.47584685]
[1756341171228,0.4614555,111120.0,111110.0,0.56584035]
[1756341173128,0.2114555,111120.0,111110.0,0.56584035]
[1756341173535,0.05100808,111120.0,111110.0,0.47584685]
[1756341174022,0.05418808,111120.0,111110.0,0.16126]
[1756341174226,0.07418808,111120.0,111110.0,0.16126]
[1756341175131,0.43418808,111120.0,111110.0,0.16126]
[1756341175334,0.43418808,111120.0,111110.0,0.0513]
[1756341175335,0.61877493,111120.0,111110.0,0.0513]
[1756341175538,0.93877493,111120.0,111110.0,0.0513]
[1756341175727,0.30418808,111120.0,111110.0,0.0513]
[1756341175932,1.53522808,111120.0,111110.0,0.16148]
[1756341177538,1.33740329,111120.0,111110.0,0.16148]
[1756341177735,1.35575841,111120.0,111110.0,0.16148]
[1756341178237,0.50471841,111120.0,111110.0,0.16148]
[1756341178436,1.35567841,111120.0,111110.0,0.16148]
[1756341178736,0.50471841,111120.0,111110.0,0.16148]
[1756341178936,1.35563841,111120.0,111110.0,0.16148]
[1756341180036,0.12471841,111120.0,111110.0,0.16148]
[1756341180235,0.86919512,111120.0,111110.0,0.70969706]
[1756341181130,0.01835512,111120.0,111110.0,0.70969706]
[1756341181540,0.86911512,111120.0,111110.0,0.70969706]
[1756341182039,0.01835512,111120.0,111110.0,0.70969706]
[1756341182432,0.84195512,111120.0,111110.0,0.95969706]
[1756341183438,0.01835512,111120.0,111110.0,0.95969706]
[1756341184945,0.01835512,111120.0,111110.0,0.96069706]
[1756341185346,0.01835512,111120.0,111110.0,1.22629706]
[1756341185546,0.01835512,111120.0,111110.0,1.22529706]
[1756341190551,0.01835512,111120.0,111110.0,1.13530356]
[1756341190951,0.01835512,111120.0,111110.0,1.22529716]
[1756341191151,0.01835512,111120.0,111110.0,0.88530356]
[1756341191555,0.01835512,111120.0,111110.0,0.97529716]
[1756341192552,0.01835512,111120.0,111110.0,0.66071031]
[1756341192752,0.01835512,111120.0,111110.0,0.97529716]
[1756341194251,0.01835512,111120.0,111110.0,0.88530356]
[1756341195456,0.01835512,111120.0,111110.0,0.97529716]
[1756341197056,0.01835512,111120.0,111110.0,0.70969716]
[1756341198158,0.10834062,111120.0,111110.0,0.70969716]
[1756341198354,0.07334062,111120.0,111110.0,0.70969716]
[1756341198555,0.9399427,111130.0,111120.0,0.2492855]
[1756341198757,0.9399427,111130.0,111120.0,0.56387235]
[1756341199059,0.9399427,111130.0,111120.0,0.70750906]
[1756341199257,0.0899827,111130.0,111120.0,1.02209591]
[1756341199657,0.0899827,111130.0,111120.0,0.70750906]
[1756341200060,0.0909827,111130.0,111120.0,0.70750906]
[1756341200758,0.92047,111140.0,111130.0,0.1593]
[1756341201058,0.93858173,111140.0,111130.0,0.47388685]
[1756341201760,0.93958173,111140.0,111130.0,0.47388685]
[1756341202157,0.94158173,111140.0,111130.0,0.47388685]
[1756341204259,0.90654173,111140.0,111130.0,0.70750096]
[1756341204449,0.94130173,111140.0,111130.0,0.70750096]
[1756341206161,0.94130173,111140.0,111130.0,0.61752356]
[1756341207563,0.96130173,111140.0,111130.0,0.61752356]
[1756341208160,0.96130173,111140.0,111130.0,0.30293671]
[1756341208361,0.96130173,111140.0,111130.0,0.61752356]
[1756341209257,0.96130173,111140.0,111130.0,0.30293671]
[1756341209464,1.84588858,111140.0,111130.0,0.02801]
[1756341209762,1.87035142,111140.0,111130.0,0.02801]
[1756341210554,1.84317142,111140.0,111120.0,0.02729]
[1756341210756,0.38529685,111130.0,111120.0,0.19336671]
[1756341210956,0.72529685,111130.0,111120.0,0.04963]
[1756341211152,0.72529685,111130.0,111120.0,0.02719]
[1756341211858,0.72529685,111130.0,111120.0,0.07203]
[1756341212363,0.97529685,111130.0,111120.0,0.02719]
[1756341213363,0.97729685,111130.0,111120.0,0.02719]
[1756341213966,0.97829685,111130.0,111120.0,0.02719]
[1756341214755,1.82717685,111130.0,111120.0,0.04963]
[1756341214954,1.82717685,111130.0,111120.0,0.10674]
[1756341215166,1.81717685,111130.0,111120.0,0.12628]
[1756341215466,1.50259,111130.0,111120.0,0.1595]
[1756341216264,1.50259,111130.0,111120.0,0.09157]
[1756341216660,0.06108,111130.0,111120.0,0.39312221]
[1756341216866,0.87392,111130.0,111120.0,0.95770906]
[1756341217167,0.92243,111130.0,111120.0,0.95770906]
[1756341217866,0.92143,111130.0,111120.0,0.55313671]
[1756341218066,0.92143,111130.0,111120.0,0.86772356]
[1756341218569,1.82401685,111130.0,111120.0,0.17082671]
[1756341219065,1.82401685,111130.0,111120.0,0.14363671]
[1756341219769,1.82601685,111130.0,111120.0,0.14363671]
[1756341219962,1.82601685,111130.0,111120.0,0.13100671]
[1756341220260,0.05621975,111120.0,111110.0,0.02729]
[1756341220471,0.7108066,111120.0,111110.0,0.15819671]
[1756341220662,0.7108066,111120.0,111110.0,0.13100671]
[1756341220860,0.03787,111110.0,111100.0,0.0471991]
[1756341221056,1.54097685,111110.0,111100.0,0.17800581]
[1756341221260,1.54097685,111110.0,111100.0,0.0198091]
[1756341221966,1.79097685,111110.0,111100.0,0.0198091]
[1756341222166,1.79097685,111110.0,111100.0,0.0208091]
[1756341222367,1.79093685,111110.0,111100.0,0.002]
[1756341222566,1.79093685,111110.0,111020.0,0.21706851]
[1756341222567,0.01901,111030.0,111020.0,0.21706851]
[1756341222863,0.88631,111030.0,111020.0,0.13231]
[1756341223166,1.24001685,111030.0,111020.0,0.22860671]
[1756341223357,0.39157685,111030.0,111020.0,0.26331671]
[1756341223553,1.22811319,111030.0,111020.0,0.26331671]
[1756341223870,0.11328634,111030.0,111020.0,0.26331671]
[1756341224164,0.09328634,111030.0,111020.0,0.26331671]
[1756341224360,0.97912634,111030.0,111020.0,0.26331671]
[1756341224564,0.96172634,111030.0,111020.0,0.29150671]
[1756341224769,0.96172634,111030.0,111020.0,0.29650671]
[1756341225064,0.09328634,111030.0,111020.0,0.29650671]
[1756341225263,0.94180634,111030.0,111020.0,0.29150671]
[1756341225464,0.94180634,111030.0,111020.0,0.29450671]
[1756341225866,0.92165634,111030.0,111020.0,0.29450671]
[1756341226066,0.94176634,111030.0,111020.0,0.29450671]
[1756341226260,0.10948986,111030.0,111020.0,0.91441798]
[1756341226566,0.68040986,111030.0,111020.0,0.91441798]
[1756341226866,0.69607986,111030.0,111020.0,0.91441798]
[1756341227265,0.08728986,111030.0,111020.0,1.00448388]
[1756341227464,0.52658144,111040.0,111020.0,0.91441798]
[1756341227661,0.54868144,111040.0,111030.0,0.1595]
[1756341227866,0.19221144,111040.0,111030.0,0.29050671]
[1756341228168,0.23232144,111040.0,111030.0,0.29050671]
[1756341228364,0.21232144,111040.0,111030.0,0.13100671]
[1756341228563,2.03139858,111040.0,111020.0,0.03129]
[1756341228768,0.44690127,111030.0,111020.0,0.13500671]
[1756341228969,1.66446127,111030.0,111020.0,0.13200671]
[1756341229165,1.29446127,111030.0,111020.0,0.13200671]
[1756341229366,1.64446127,111030.0,111020.0,0.13200671]
[1756341229562,0.79590127,111030.0,111020.0,0.13200671]
[1756341229768,1.64446127,111030.0,111020.0,0.13200671]
[1756341230362,0.06347,111020.0,111010.0,0.00013483]
[1756341230565,0.85397174,111020.0,111010.0,0.00013483]
[1756341230763,0.08567,110990.0,110960.0,0.05562]
[1756341230966,0.08567,110990.0,110970.0,0.13100671]
[1756341230967,1.30218127,110980.0,110970.0,0.13100671]
[1756341231164,0.04446,110960.0,110920.0,0.12343935]
[1756341231367,0.05279,110950.0,110940.0,0.11752]
[1756341231668,0.86862826,110960.0,110940.0,0.82756197]
[1756341231866,0.86623,110980.0,110970.0,0.11752]
[1756341232062,0.16567,110980.0,110970.0,0.11752]
[1756341232266,1.5,110980.0,110970.0,0.73843127]
[1756341232466,0.07046346,110980.0,110970.0,0.82853767]
[1756341232667,0.87013034,110990.0,110970.0,0.64331127]
[1756341232872,0.88580034,110990.0,110980.0,0.11752]
[1756341233267,0.88580034,110990.0,110980.0,0.36752]